Workbook

Sheet Project Summary
C2: ↓ PROJINFO | D2: ↓ GLBAL
B3: Year | C3: 2017 | T3: 2035 | U3: CY | V3: =U3 -> CY | X3: 2035
B4: Period | C4: P12 | J4: 2017-08-01 | K4: =LEN(L4) -> 11 | L4: Employee Id | M4: (7 digits) | N4: Employee Name: | T4: P12 | U4: CM | V4: CM | X4: P12
B5: Calculation | C5: PTD | K5: =LEN(L5) -> 10 | L5: Project Id | M5: (8 digits) | T5: LTD | U5: LTD | V5: LTD | X5: LTD
B6: Measure | C6: ACTUAL | K6: =LEN(L6) -> 13 | L6: Department Id | M6: (6 digits) | N6: Department Description: | T6: BUDGET | U6: ACTUAL | V6: ACTUAL | X6: FCSTtest
B7: Project | C7: =IFERROR(IF(OR(ISBLANK($J$20),VALUE($J$20)=0),"FILTER ID IS MISSING","ALL"),"ALL") -> FILTER ID IS MISSING
B8: GL Type | C8: FUNC | D8: FUNC | F8: =(J20)=0 -> TRUE
B9: Currency | C9: USD | D9: USD
B10: Entity | C10: ALL | D10: ALL
B11: Department | C11: ALL | D11: ALL
B12: Account | T12: ALL_NON-SPONS_PROJ | U12: ALL_NON-SPONS_PROJ | V12: ENCUMB | X12: ALL_NON-SPONS_PROJ
B13: Employee | C13: ALL | D13: ALL
B14: Scenario | C14: BASE | D14: BASE
B15: Source | C15: NONS | D15: NONS
I18: Select search method: | J18: Employee Id
I20: =IF(ISBLANK($J$18),"","Enter "&$J$18&":") -> Enter Employee Id: | K20: =IFERROR(VLOOKUP($J$18,$L$4:$M$6,2,FALSE),"") -> (7 digits)
I23: Non-Sponsored Project Summary | T23: =SUBTOTAL(109,T26:T3025) -> 0 | U23: =SUBTOTAL(109,U26:U3025) -> 0 | V23: 0 | W23: 0 | X23: 0 | Y23: 0
I25: Hyperlink | J25: Project ID | K25: Project Name | L25: Department ID | M25: Department Name | N25: Project Start Date | O25: Project End Date | P25: Speedtype | Q25: Faculty 1 | R25: Faculty 2 | S25: Faculty 3 | T25: LTD Budget | U25: LTD Actuals | V25: LTD Encumbrance | W25: Current Available Balance | X25: Projected Expenses | Y25: Projected Surplus/(Deficit)
W26: =T26-U26-V26 -> 0 | Y26: =W26-X26 -> 0
W27: =T27-U27-V27 -> 0 | Y27: =W27-X27 -> 0
W28: =T28-U28-V28 -> 0 | Y28: 0
W29: =T29-U29-V29 -> 0 | Y29: 0
W30: =T30-U30-V30 -> 0 | Y30: 0
W31: =T31-U31-V31 -> 0 | Y31: 0
W32: =T32-U32-V32 -> 0 | Y32: 0
W33: =T33-U33-V33 -> 0 | Y33: 0
W34: =T34-U34-V34 -> 0 | Y34: 0
W35: =T35-U35-V35 -> 0 | Y35: 0
W36: =T36-U36-V36 -> 0 | Y36: 0
W37: =T37-U37-V37 -> 0 | Y37: 0
W38: =T38-U38-V38 -> 0 | Y38: 0
W39: =T39-U39-V39 -> 0 | Y39: 0
W40: =T40-U40-V40 -> 0 | Y40: 0
W41: =T41-U41-V41 -> 0 | Y41: 0
W42: =T42-U42-V42 -> 0 | Y42: 0
W43: =T43-U43-V43 -> 0 | Y43: 0
W44: =T44-U44-V44 -> 0 | Y44: 0
W45: =T45-U45-V45 -> 0 | Y45: 0
W46: =T46-U46-V46 -> 0 | Y46: 0
W47: =T47-U47-V47 -> 0 | Y47: 0
W48: =T48-U48-V48 -> 0 | Y48: 0
W49: =T49-U49-V49 -> 0 | Y49: 0
W50: =T50-U50-V50 -> 0 | Y50: 0
W51: =T51-U51-V51 -> 0 | Y51: 0
W52: =T52-U52-V52 -> 0 | Y52: 0
W53: =T53-U53-V53 -> 0 | Y53: 0
W54: =T54-U54-V54 -> 0 | Y54: 0
W55: =T55-U55-V55 -> 0 | Y55: 0
W56: =T56-U56-V56 -> 0 | Y56: 0
W57: =T57-U57-V57 -> 0 | Y57: 0
W58: =T58-U58-V58 -> 0 | Y58: 0
W59: =T59-U59-V59 -> 0 | Y59: 0
W60: =T60-U60-V60 -> 0 | Y60: 0
W61: =T61-U61-V61 -> 0 | Y61: 0
W62: =T62-U62-V62 -> 0 | Y62: 0
W63: =T63-U63-V63 -> 0 | Y63: 0
W64: =T64-U64-V64 -> 0 | Y64: 0
W65: =T65-U65-V65 -> 0 | Y65: 0
W66: =T66-U66-V66 -> 0 | Y66: 0
W67: =T67-U67-V67 -> 0 | Y67: 0
W68: =T68-U68-V68 -> 0 | Y68: 0
W69: =T69-U69-V69 -> 0 | Y69: 0
W70: =T70-U70-V70 -> 0 | Y70: 0
W71: =T71-U71-V71 -> 0 | Y71: 0
W72: =T72-U72-V72 -> 0 | Y72: 0
W73: =T73-U73-V73 -> 0 | Y73: 0
W74: =T74-U74-V74 -> 0 | Y74: 0
W75: =T75-U75-V75 -> 0 | Y75: 0
W76: =T76-U76-V76 -> 0 | Y76: 0
W77: =T77-U77-V77 -> 0 | Y77: 0
W78: =T78-U78-V78 -> 0 | Y78: 0
W79: =T79-U79-V79 -> 0 | Y79: 0
W80: =T80-U80-V80 -> 0 | Y80: 0
W81: =T81-U81-V81 -> 0 | Y81: 0
W82: =T82-U82-V82 -> 0 | Y82: 0
W83: =T83-U83-V83 -> 0 | Y83: 0
W84: =T84-U84-V84 -> 0 | Y84: 0
W85: =T85-U85-V85 -> 0 | Y85: 0
W86: =T86-U86-V86 -> 0 | Y86: 0
W87: =T87-U87-V87 -> 0 | Y87: 0
W88: =T88-U88-V88 -> 0 | Y88: 0
W89: =T89-U89-V89 -> 0 | Y89: 0
W90: =T90-U90-V90 -> 0 | Y90: 0
W91: =T91-U91-V91 -> 0 | Y91: =W91-X91 -> 0
W92: =T92-U92-V92 -> 0 | Y92: 0
W93: =T93-U93-V93 -> 0 | Y93: 0
W94: =T94-U94-V94 -> 0 | Y94: 0
W95: =T95-U95-V95 -> 0 | Y95: 0
W96: =T96-U96-V96 -> 0 | Y96: 0
W97: =T97-U97-V97 -> 0 | Y97: 0
W98: =T98-U98-V98 -> 0 | Y98: 0
W99: =T99-U99-V99 -> 0 | Y99: 0
W100: =T100-U100-V100 -> 0 | Y100: 0
W101: =T101-U101-V101 -> 0 | Y101: 0
W102: =T102-U102-V102 -> 0 | Y102: 0
W103: =T103-U103-V103 -> 0 | Y103: 0
W104: =T104-U104-V104 -> 0 | Y104: 0
W105: =T105-U105-V105 -> 0 | Y105: 0
W106: =T106-U106-V106 -> 0 | Y106: 0
W107: =T107-U107-V107 -> 0 | Y107: 0
W108: =T108-U108-V108 -> 0 | Y108: 0
W109: =T109-U109-V109 -> 0 | Y109: 0
W110: =T110-U110-V110 -> 0 | Y110: 0
W111: =T111-U111-V111 -> 0 | Y111: 0
W112: =T112-U112-V112 -> 0 | Y112: 0
W113: =T113-U113-V113 -> 0 | Y113: 0
W114: =T114-U114-V114 -> 0 | Y114: 0
W115: =T115-U115-V115 -> 0 | Y115: 0
W116: =T116-U116-V116 -> 0 | Y116: 0
W117: =T117-U117-V117 -> 0 | Y117: 0
W118: =T118-U118-V118 -> 0 | Y118: 0
W119: =T119-U119-V119 -> 0 | Y119: 0
W120: =T120-U120-V120 -> 0 | Y120: 0
W121: =T121-U121-V121 -> 0 | Y121: 0
W122: =T122-U122-V122 -> 0 | Y122: 0
W123: =T123-U123-V123 -> 0 | Y123: 0
W124: =T124-U124-V124 -> 0 | Y124: 0
W125: =T125-U125-V125 -> 0 | Y125: 0
W126: =T126-U126-V126 -> 0 | Y126: 0
W127: =T127-U127-V127 -> 0 | Y127: 0
W128: =T128-U128-V128 -> 0 | Y128: 0
W129: =T129-U129-V129 -> 0 | Y129: 0
W130: =T130-U130-V130 -> 0 | Y130: 0
W131: =T131-U131-V131 -> 0 | Y131: 0

Sheet Notes
B2: Dimension | C2: ↑ Comments Drill | D2: ↓ Comments Drill
B3: Year | C3: 2017 | D3: 2017
B4: Period | C4: 12 | D4: P12
B5: Calculation | D5: PTD
B6: Measure | C6: FCSTtest | D6: =C6 -> FCSTtest
B7: Project | D7: ALL
B8: Employee | C8: 0000000 | D8: 0000000
B9: Source | C9: NONS | D9: NONS
E17: DO NOT MAKE CHANGES TO CELLS ABOVE | G17: DO NOT MAKE CHANGES TO CELLS ABOVE | N17: DO NOT MAKE CHANGES TO CELLS ABOVE
E18: Unfunded Commitments - Notes
E19: * required field | F19: **Reminder: Once a Commitment has been funded, remove it from the Unfunded Commitments Column on the Project Worksheet**
E21: Project Id_Activity Id*: | G21: (14 digits)
E23: Commitment # | F23: Date Committed | G23: Committed By | H23: Amount | I23: Date Funded | J23: Notes*

Sheet Template (hidden)
C2: 1↓Rev & Costs GLBAL | D2: 2↑Rev & Costs GLBAL | E2: ↓ Employee Staff Drill | F2: 3↓ Employee GLBAL | G2: 4↑ Employee GLBAL | H2: ↑ Employee Staff Drill
B3: Year | E3: 2017 | H3: 2017 | N3: ='Project Summary'!J4 -> 2017-08-01 | U3: 2035 | V3: 2017 | X3: =IF(MONTH($N$3)>=9,YEAR($N$3)-7,YEAR($N$3)-8) -> 2009 | Z3: =X3+1 -> 2010 | AB3: =Z3+1 -> 2011 | AD3: =AB3+1 -> 2012 | AF3: =AD3+1 -> 2013 | AH3: =AF3+1 -> 2014 | AJ3: =AH3+1 -> 2015 | AL3: =AJ3+1 -> 2016 | AN3: =AL3 -> 2016 | AO3: =AN3 -> 2016 | AP3: =AO3 -> 2016 | AQ3: 2016 | AR3: =AQ3+1 -> 2017 | AS3: =AR3 -> 2017 | AT3: =AS3 -> 2017 | AU3: 2017 | AV3: 2017 | AW3: 2017 | AX3: 2017 | AY3: 2017 | BB3: =AY3 -> 2017 | BC3: =BB3 -> 2017 | BD3: =BC3 -> 2017 | BE3: 2017 | BF3: =BE3+1 -> 2018 | BG3: =BF3 -> 2018 | BH3: =BG3 -> 2018 | BI3: =BH3 -> 2018 | BJ3: 2018 | BK3: 2018 | BL3: 2018 | BM3: 2018 | BP3: =BM3 -> 2018 | BQ3: =BP3 -> 2018 | BR3: =BQ3 -> 2018 | BS3: 2018 | BT3: =BS3+1 -> 2019 | BU3: =BT3 -> 2019 | BV3: =BU3 -> 2019 | BW3: 2019 | BX3: 2019 | BY3: 2019 | BZ3: 2019 | CA3: 2019 | CE3: CY
B4: Period | E4: P12 | H4: 12 | U4: P12 | V4: P12 | X4: P08 | Z4: P08 | AB4: P08 | AD4: P08 | AF4: P08 | AH4: P08 | AJ4: P08 | AL4: P08 | AN4: P09 | AO4: P10 | AP4: P11 | AQ4: P12 | AR4: P01 | AS4: P02 | AT4: P03 | AU4: P04 | AV4: P05 | AW4: P06 | AX4: P07 | AY4: P08 | BB4: P09 | BC4: P10 | BD4: P11 | BE4: P12 | BF4: P01 | BG4: P02 | BH4: P03 | BI4: P04 | BJ4: P05 | BK4: P06 | BL4: P07 | BM4: P08 | BP4: P09 | BQ4: P10 | BR4: P11 | BS4: P12 | BT4: P01 | BU4: P02 | BV4: P03 | BW4: P04 | BX4: P05 | BY4: P06 | BZ4: P07 | CA4: P08 | CE4: CM
B5: Calculation | E5: PTD | U5: LTD | V5: PTD | X5: LTD | Z5: T12M | AB5: T12M | AD5: T12M | AF5: T12M | AH5: T12M | AJ5: T12M | AL5: T12M | AN5: PTD | AO5: PTD | AP5: PTD | AQ5: PTD | AR5: PTD | AS5: PTD | AT5: PTD | AU5: PTD | AV5: PTD | AW5: PTD | AX5: PTD | AY5: PTD | BB5: PTD | BC5: PTD | BD5: PTD | BE5: PTD | BF5: PTD | BG5: PTD | BH5: PTD | BI5: PTD | BJ5: PTD | BK5: PTD | BL5: PTD | BM5: PTD | BP5: PTD | BQ5: PTD | BR5: PTD | BS5: PTD | BT5: PTD | BU5: PTD | BV5: PTD | BW5: PTD | BX5: PTD | BY5: PTD | BZ5: PTD | CA5: PTD | CE5: LTD
B6: Measure ↓ | E6: =$N$7 -> FCSTtest | H6: =IF(ISBLANK($P$415),"",$N$7) ->  | U6: BUDGET | V6: =$N$7 -> FCSTtest | X6: ACTUAL | Z6: ACTUAL | AB6: ACTUAL | AD6: ACTUAL | AF6: ACTUAL | AH6: ACTUAL | AJ6: ACTUAL | AL6: ACTUAL | AN6: =IF(DATE(AN3,RIGHT(AN4,2),1)>=$N$3,$N$7,"ACTUAL") -> ACTUAL | AO6: =IF(DATE(AO3,RIGHT(AO4,2),1)>=$N$3,$N$7,"ACTUAL") -> ACTUAL | AP6: ACTUAL | AQ6: ACTUAL | AR6: ACTUAL | AS6: ACTUAL | AT6: ACTUAL | AU6: ACTUAL | AV6: ACTUAL | AW6: ACTUAL | AX6: ACTUAL | AY6: FCSTtest | BB6: =IF(DATE(BB3,RIGHT(BB4,2),1)>=$N$3,$N$7,"ACTUAL") -> FCSTtest | BC6: =IF(DATE(BC3,RIGHT(BC4,2),1)>=$N$3,$N$7,"ACTUAL") -> FCSTtest | BD6: FCSTtest | BE6: FCSTtest | BF6: FCSTtest | BG6: FCSTtest | BH6: FCSTtest | BI6: FCSTtest | BJ6: FCSTtest | BK6: FCSTtest | BL6: FCSTtest | BM6: FCSTtest | BP6: =IF(DATE(BP3,RIGHT(BP4,2),1)>=$N$3,$N$7,"ACTUAL") -> FCSTtest | BQ6: =IF(DATE(BQ3,RIGHT(BQ4,2),1)>=$N$3,$N$7,"ACTUAL") -> FCSTtest | BR6: FCSTtest | BS6: FCSTtest | BT6: FCSTtest | BU6: FCSTtest | BV6: FCSTtest | BW6: FCSTtest | BX6: FCSTtest | BY6: FCSTtest | BZ6: FCSTtest | CA6: FCSTtest | CE6: ACTUAL
B7: Measure ↑ | N7: FCSTtest | V7: =$N$7 -> FCSTtest | AN7: =IF(OR(AN6="ACTUAL",ISBLANK($P$415)),"",AN6) ->  | BB7: =IF(OR(BB6="ACTUAL",ISBLANK($P$415)),"",BB6) ->  | BP7: =IF(OR(BP6="ACTUAL",ISBLANK($P$415)),"",BP6) -> 
B8: GL Type | C8: FUNC | D8: =IF(ISBLANK($P$415),IF($CD$615=0,"FUNC","NO DATA"),"FUNC") -> FUNC | F8: FUNC | G8: =IF(ISBLANK($P$415),"NO DATA","FUNC") -> NO DATA
B9: Currency | C9: USD | D9: USD | F9: USD | G9: USD
B10: Entity | C10: ALL | D10: EMUNV | F10: ALL | G10: EMUNV
B11: Department | C11: ALL | D11: DEPTS_NOT_INCLUDED | F11: ALL | G11: DEPTS_NOT_INCLUDED
B12: Account | F12: SALARY_NS | G12: 50050_NS
B13: Project | D13: =$C$13 -> 0 | E13: =$C$13 -> 0 | F13: =$C$13 -> 0 | G13: 0 | H13: 0
B14: Employee | C14: ALL | D14: 0000000 | E14: ALL
B15: Scenario | C15: BASE | D15: BASE | F15: BASE | G15: BASE
B16: Source | E16: NONS | H16: =IF(ISBLANK($P$415),"NO DATA","NONS") -> NO DATA | U16: NONS | V16: NSPUNFUND | X16: NONS | Z16: NONS | AB16: NONS | AD16: NONS | AF16: NONS | AH16: NONS | AJ16: NONS | AL16: NONS | AN16: NONS | AO16: NONS | AP16: NONS | AQ16: NONS | AR16: NONS | AS16: NONS | AT16: NONS | AU16: NONS | AV16: NONS | AW16: NONS | AX16: NONS | AY16: NONS | BB16: NONS | BC16: NONS | BD16: NONS | BE16: NONS | BF16: NONS | BG16: NONS | BH16: NONS | BI16: NONS | BJ16: NONS | BK16: NONS | BL16: NONS | BM16: NONS | BP16: NONS | BQ16: NONS | BR16: NONS | BS16: NONS | BT16: NONS | BU16: NONS | BV16: NONS | BW16: NONS | BX16: NONS | BY16: NONS | BZ16: NONS | CA16: NONS | CE16: NONS
C21: DO NOT MAKE CHANGES TO CELLS ABOVE | L21: DO NOT MAKE CHANGES TO CELLS ABOVE | R21: DO NOT MAKE CHANGES TO CELLS ABOVE | AB21: DO NOT MAKE CHANGES TO CELLS ABOVE | AN21: DO NOT MAKE CHANGES TO CELLS ABOVE | AV21: DO NOT MAKE CHANGES TO CELLS ABOVE | BB21: DO NOT MAKE CHANGES TO CELLS ABOVE | BJ21: DO NOT MAKE CHANGES TO CELLS ABOVE | BP21: DO NOT MAKE CHANGES TO CELLS ABOVE | BX21: DO NOT MAKE CHANGES TO CELLS ABOVE | CI21: DO NOT MAKE CHANGES TO CELLS ABOVE
AN27: =IF(AN6="ACTUAL","Actuals","Projected") -> Actuals | AO27: =IF(AO6="ACTUAL","Actuals","Projected") -> Actuals | AP27: Actuals | AQ27: Actuals | AR27: Actuals | AS27: Actuals | AT27: Actuals | AU27: Actuals | AV27: Actuals | AW27: Actuals | AX27: Actuals | AY27: Projected | BB27: =IF(BB6="ACTUAL","Actuals","Projected") -> Projected | BC27: =IF(BC6="ACTUAL","Actuals","Projected") -> Projected | BD27: Projected | BE27: Projected | BF27: Projected | BG27: Projected | BH27: Projected | BI27: Projected | BJ27: Projected | BK27: Projected | BL27: Projected | BM27: Projected | BP27: =IF(BP6="ACTUAL","Actuals","Projected") -> Projected | BQ27: =IF(BQ6="ACTUAL","Actuals","Projected") -> Projected | BR27: Projected | BS27: Projected | BT27: Projected | BU27: Projected | BV27: Projected | BW27: Projected | BX27: Projected | BY27: Projected | BZ27: Projected | CA27: Projected | CD27: LTD Total | CE27: LTD Actuals | CF27: LTD Available Balance ($) Favorable / (Unfavorable) | CG27: LTD Projections | CH27: Projected Surplus/(Deficit)
X28: ="LTD FY "&X3 -> LTD FY 2009 | Z28: ="FY "&Z3 -> FY 2010 | AB28: ="FY "&AB3 -> FY 2011 | AD28: ="FY "&AD3 -> FY 2012 | AF28: ="FY "&AF3 -> FY 2013 | AH28: ="FY "&AH3 -> FY 2014 | AJ28: ="FY "&AJ3 -> FY 2015 | AL28: ="FY "&AL3 -> FY 2016 | AN28: ="FY "&AY3 -> FY 2017 | AZ28: =AN28 -> FY 2017 | BB28: ="FY "&BM3 -> FY 2018 | BN28: =BB28 -> FY 2018 | BP28: ="FY "&CA3 -> FY 2019 | CB28: =BP28 -> FY 2019
R29: % Current HR Earnings Distribution | S29: % Fringe | U29: LTD Budget | V29: Unfunded Commitments | X29: Total Actuals | Z29: Total Actuals | AB29: Total Actuals | AD29: Total Actuals | AF29: Total Actuals | AH29: Total Actuals | AJ29: Total Actuals | AL29: Total Actuals | AN29: PD 01 - September | AO29: PD 02 - October | AP29: PD 03 - November | AQ29: PD 04 - December | AR29: PD 05 - January | AS29: PD 06 - February | AT29: PD 07 - March | AU29: PD 08 - April | AV29: PD 09 - May | AW29: PD 10 - June | AX29: PD 11 - July | AY29: PD 12 - August | AZ29: Total Actuals + Projections | BB29: PD 01 - September | BC29: PD 02 - October | BD29: PD 03 - November | BE29: PD 04 - December | BF29: PD 05 - January | BG29: PD 06 - February | BH29: PD 07 - March | BI29: PD 08 - April | BJ29: PD 09 - May | BK29: PD 10 - June | BL29: PD 11 - July | BM29: PD 12 - August | BN29: Total Actuals + Projections | BP29: PD 01 - September | BQ29: PD 02 - October | BR29: PD 03 - November | BS29: PD 04 - December | BT29: PD 05 - January | BU29: PD 06 - February | BV29: PD 07 - March | BW29: PD 08 - April | BX29: PD 09 - May | BY29: PD 10 - June | BZ29: PD 11 - July | CA29: PD 12 - August | CB29: Total Actuals + Projections
O31: Revenues
C32: 40000_NS | D32: 40000_NS | Q32: 40000 BDG-All Revenue | AZ32: =SUM(AN32:AY32) -> 0 | BN32: =SUM(BB32:BM32) -> 0 | CB32: =SUM(BP32:CA32) -> 0 | CD32: =SUM(X32,Z32,AB32,AD32,AF32,AH32,AJ32,AL32,AZ32,BN32,CB32) -> 0 | CF32: =SUM(U32:V32,-CE32) -> 0 | CG32: =CD32-CE32 -> 0 | CH32: =SUM(CF32,-CG32) -> 0
Q33: Budget, all revenue | U33: =SUM(U32) -> 0 | V33: 0 | X33: 0 | Z33: 0 | AB33: 0 | AD33: 0 | AF33: 0 | AH33: 0 | AJ33: 0 | AL33: 0 | AN33: 0 | AO33: 0 | AP33: 0 | AQ33: 0 | AR33: 0 | AS33: 0 | AT33: 0 | AU33: 0 | AV33: 0 | AW33: 0 | AX33: 0 | AY33: 0 | AZ33: 0 | BB33: 0 | BC33: 0 | BD33: 0 | BE33: 0 | BF33: 0 | BG33: 0 | BH33: 0 | BI33: 0 | BJ33: 0 | BK33: 0 | BL33: 0 | BM33: 0 | BN33: =SUM(BN32) -> 0 | BP33: 0 | BQ33: 0 | BR33: 0 | BS33: 0 | BT33: 0 | BU33: 0 | BV33: 0 | BW33: 0 | BX33: 0 | BY33: 0 | BZ33: 0 | CA33: 0 | CB33: =SUM(CB32) -> 0 | CD33: 0 | CE33: =SUM(CE32) -> 0 | CF33: =SUM(U33:V33,-CE33) -> 0 | CG33: =CD33-CE33 -> 0 | CH33: =SUM(CF33,-CG33) -> 0
C34: 49000_NS | D34: 49000_NS | Q34: 49000 BDG-Non-Operating Revenue | AZ34: =SUM(AN34:AY34) -> 0 | BN34: =SUM(BB34:BM34) -> 0 | CB34: =SUM(BP34:CA34) -> 0 | CD34: 0 | CF34: 0 | CG34: 0 | CH34: 0
Q35: Budget Nonoper Rev | U35: =SUM(U34) -> 0 | V35: 0 | X35: 0 | Z35: 0 | AB35: 0 | AD35: 0 | AF35: 0 | AH35: 0 | AJ35: 0 | AL35: 0 | AN35: 0 | AO35: 0 | AP35: 0 | AQ35: 0 | AR35: 0 | AS35: 0 | AT35: 0 | AU35: 0 | AV35: 0 | AW35: 0 | AX35: 0 | AY35: 0 | AZ35: 0 | BB35: 0 | BC35: 0 | BD35: 0 | BE35: 0 | BF35: 0 | BG35: 0 | BH35: 0 | BI35: 0 | BJ35: 0 | BK35: 0 | BL35: 0 | BM35: 0 | BN35: =SUM(BN34) -> 0 | BP35: 0 | BQ35: 0 | BR35: 0 | BS35: 0 | BT35: 0 | BU35: 0 | BV35: 0 | BW35: 0 | BX35: 0 | BY35: 0 | BZ35: 0 | CA35: 0 | CB35: =SUM(CB34) -> 0 | CD35: 0 | CE35: =SUM(CE34) -> 0 | CF35: 0 | CG35: 0 | CH35: 0
C36: 49330_NS | D36: 49330_NS | Q36: 49330 Gifts Rev - Non-Oper - Private | AZ36: =SUM(AN36:AY36) -> 0 | BN36: =SUM(BB36:BM36) -> 0 | CB36: =SUM(BP36:CA36) -> 0 | CD36: 0 | CF36: 0 | CG36: 0 | CH36: 0
C37: 49335_NS | D37: 49335_NS | Q37: 49335 Gift Revenue -Non-Operating-Py | AZ37: 0 | BN37: 0 | CB37: 0 | CD37: 0 | CF37: 0 | CG37: 0 | CH37: 0
C38: 49345_NS | D38: 49345_NS | Q38: 49345 Contributions Rec Adj-Non-Oper | AZ38: 0 | BN38: 0 | CB38: 0 | CD38: 0 | CF38: 0 | CG38: 0 | CH38: 0
C39: 49347_NS | D39: 49347_NS | Q39: 49347 L Fischer Gifts-EHM | AZ39: 0 | BN39: 0 | CB39: 0 | CD39: 0 | CF39: 0 | CG39: 0 | CH39: 0
Q40: Gifts & Contributions | U40: =SUM(U36:U39) -> 0 | V40: 0 | X40: 0 | Z40: 0 | AB40: 0 | AD40: 0 | AF40: 0 | AH40: 0 | AJ40: 0 | AL40: 0 | AN40: 0 | AO40: 0 | AP40: 0 | AQ40: 0 | AR40: 0 | AS40: 0 | AT40: 0 | AU40: 0 | AV40: 0 | AW40: 0 | AX40: 0 | AY40: 0 | AZ40: 0 | BB40: 0 | BC40: 0 | BD40: 0 | BE40: 0 | BF40: 0 | BG40: 0 | BH40: 0 | BI40: 0 | BJ40: 0 | BK40: 0 | BL40: 0 | BM40: 0 | BN40: =SUM(BN36:BN39) -> 0 | BP40: 0 | BQ40: 0 | BR40: 0 | BS40: 0 | BT40: 0 | BU40: 0 | BV40: 0 | BW40: 0 | BX40: 0 | BY40: 0 | BZ40: 0 | CA40: =SUM(CA36:CA39) -> 0 | CB40: =SUM(CB36:CB39) -> 0 | CD40: 0 | CE40: =SUM(CE36:CE39) -> 0 | CF40: 0 | CG40: 0 | CH40: 0
C41: 49210_NS | D41: 49210_NS | Q41: 49210 E&E Woodruff Support | AZ41: =SUM(AN41:AY41) -> 0 | BN41: =SUM(BB41:BM41) -> 0 | CB41: =SUM(BP41:CA41) -> 0 | CD41: 0 | CF41: 0 | CG41: 0 | CH41: 0
C42: 49407_NS | D42: 49407_NS | Q42: 49407 Gain/Loss - Investments | AZ42: 0 | BN42: 0 | CB42: 0 | CD42: 0 | CF42: 0 | CG42: 0 | CH42: 0
C43: 49408_NS | D43: 49408_NS | Q43: 49408 Gain/Loss - Securities | AZ43: 0 | BN43: 0 | CB43: 0 | CD43: 0 | CF43: 0 | CG43: 0 | CH43: 0
C44: 49505_NS | D44: 49505_NS | Q44: 49505 Inv Inc - Cash Equiv - Nonoper | AZ44: 0 | BN44: 0 | CB44: 0 | CD44: 0 | CF44: 0 | CG44: 0 | CH44: 0
C45: 49510_NS | D45: 49510_NS | Q45: 49510 Inv Inc - US Fixed Income | AZ45: 0 | BN45: 0 | CB45: 0 | CD45: 0 | CF45: 0 | CG45: 0 | CH45: 0
C46: 49512_NS | D46: 49512_NS | Q46: 49512 Inv Inc - Non-US Fixed Inc | AZ46: 0 | BN46: 0 | CB46: 0 | CD46: 0 | CF46: 0 | CG46: 0 | CH46: 0
C47: 49515_NS | D47: 49515_NS | Q47: 49515 Inv Inc - Pooled Life Inc | AZ47: 0 | BN47: 0 | CB47: 0 | CD47: 0 | CF47: 0 | CG47: 0 | CH47: 0
C48: 49520_NS | D48: 49520_NS | Q48: 49520 Inv Inc - US Equity | AZ48: 0 | BN48: 0 | CB48: 0 | CD48: 0 | CF48: 0 | CG48: 0 | CH48: 0
C49: 49522_NS | D49: 49522_NS | Q49: 49522 Inv Inc - Non-US Equity | AZ49: 0 | BN49: 0 | CB49: 0 | CD49: 0 | CF49: 0 | CG49: 0 | CH49: 0
C50: 49523_NS | D50: 49523_NS | Q50: 49523 Inv Inc - Div Reinvested | AZ50: 0 | BN50: 0 | CB50: 0 | CD50: 0 | CF50: 0 | CG50: 0 | CH50: 0
C51: 49525_NS | D51: 49525_NS | Q51: 49525 Inv Inc - Derivatives | AZ51: 0 | BN51: 0 | CB51: 0 | CD51: 0 | CF51: 0 | CG51: 0 | CH51: 0
C52: 49530_NS | D52: 49530_NS | Q52: 49530 Inv Inc - Private Markets | AZ52: 0 | BN52: 0 | CB52: 0 | CD52: 0 | CF52: 0 | CG52: 0 | CH52: 0
C53: 49535_NS | D53: 49535_NS | Q53: 49535 Inv Inc - Mkt Alternatives | AZ53: 0 | BN53: 0 | CB53: 0 | CD53: 0 | CF53: 0 | CG53: 0 | CH53: 0
C54: 49550_NS | D54: 49550_NS | Q54: 49550 Inv Inc - Misc Investments | AZ54: 0 | BN54: 0 | CB54: 0 | CD54: 0 | CF54: 0 | CG54: 0 | CH54: 0
C55: 49553_NS | D55: 49553_NS | Q55: 49553 Inv Inc - Mkt Oil & Gas | AZ55: 0 | BN55: 0 | CB55: 0 | CD55: 0 | CF55: 0 | CG55: 0 | CH55: 0
C56: 49554_NS | D56: 49554_NS | Q56: 49554 Inv Inc - Non-Mkt Oil & Gas | AZ56: 0 | BN56: 0 | CB56: 0 | CD56: 0 | CF56: 0 | CG56: 0 | CH56: 0
C57: 49555_NS | D57: 49555_NS | Q57: 49555 Inv Inc - Securities Lending | AZ57: 0 | BN57: 0 | CB57: 0 | CD57: 0 | CF57: 0 | CG57: 0 | CH57: 0
C58: 49565_NS | D58: 49565_NS | Q58: 49565 Inv Inc - Accrued | AZ58: 0 | BN58: 0 | CB58: 0 | CD58: 0 | CF58: 0 | CG58: 0 | CH58: 0
C59: 49570_NS | D59: 49570_NS | Q59: 49570 Inv Inc - Mkt Real Estate | AZ59: 0 | BN59: 0 | CB59: 0 | CD59: 0 | CF59: 0 | CG59: 0 | CH59: 0
C60: 49580_NS | D60: 49580_NS | Q60: 49580 Inv Inc - Commodities | AZ60: 0 | BN60: 0 | CB60: 0 | CD60: 0 | CF60: 0 | CG60: 0 | CH60: 0
C61: 49583_NS | D61: 49583_NS | Q61: 49583 Inv Inc - Non-Mkt Real Estate | AZ61: 0 | BN61: 0 | CB61: 0 | CD61: 0 | CF61: 0 | CG61: 0 | CH61: 0
C62: 49584_NS | D62: 49584_NS | Q62: 49584 Inv Inc - Timber | AZ62: 0 | BN62: 0 | CB62: 0 | CD62: 0 | CF62: 0 | CG62: 0 | CH62: 0
C63: 49586_NS | D63: 49586_NS | Q63: 49586 Custodian Investment Income | AZ63: 0 | BN63: 0 | CB63: 0 | CD63: 0 | CF63: 0 | CG63: 0 | CH63: 0
C64: 49587_NS | D64: 49587_NS | Q64: 49587 Custodian Income/Expense, Net | AZ64: 0 | BN64: 0 | CB64: 0 | CD64: 0 | CF64: 0 | CG64: 0 | CH64: 0
C65: 49597_NS | D65: 49597_NS | Q65: 49597 Asset Transfers - Investment | AZ65: 0 | BN65: 0 | CB65: 0 | CD65: 0 | CF65: 0 | CG65: 0 | CH65: 0
C66: 49598_NS | D66: 49598_NS | Q66: 49598 Cash Transfer Endowment | AZ66: 0 | BN66: 0 | CB66: 0 | CD66: 0 | CF66: 0 | CG66: 0 | CH66: 0
C67: 49605_NS | D67: 49605_NS | Q67: 49605 Inv Gains - Cash Equivalents | AZ67: 0 | BN67: 0 | CB67: 0 | CD67: 0 | CF67: 0 | CG67: 0 | CH67: 0
C68: 49610_NS | D68: 49610_NS | Q68: 49610 Inv Gains - US Fixed Income | AZ68: 0 | BN68: 0 | CB68: 0 | CD68: 0 | CF68: 0 | CG68: 0 | CH68: 0
C69: 49611_NS | D69: 49611_NS | Q69: 49611 Inv Gains - Non-US Fixed Inc | AZ69: 0 | BN69: 0 | CB69: 0 | CD69: 0 | CF69: 0 | CG69: 0 | CH69: 0
C70: 49612_NS | D70: 49612_NS | Q70: 49612 Inv Gains - Dividend Reinv | AZ70: 0 | BN70: 0 | CB70: 0 | CD70: 0 | CF70: 0 | CG70: 0 | CH70: 0
C71: 49613_NS | D71: 49613_NS | Q71: 49613 Inv Gains - J D Carroll Trust | AZ71: 0 | BN71: 0 | CB71: 0 | CD71: 0 | CF71: 0 | CG71: 0 | CH71: 0
C72: 49620_NS | D72: 49620_NS | Q72: 49620 Inv Gains - US Equity | AZ72: 0 | BN72: 0 | CB72: 0 | CD72: 0 | CF72: 0 | CG72: 0 | CH72: 0
C73: 49622_NS | D73: 49622_NS | Q73: 49622 Inv Gains - Non-US Equity | AZ73: 0 | BN73: 0 | CB73: 0 | CD73: 0 | CF73: 0 | CG73: 0 | CH73: 0
C74: 49650_NS | D74: 49650_NS | Q74: 49650 Inv Gains - Misc Investments | AZ74: 0 | BN74: 0 | CB74: 0 | CD74: 0 | CF74: 0 | CG74: 0 | CH74: 0
C75: 49651_NS | D75: 49651_NS | Q75: 49651 Inv Gains - Mkt Alternatives | AZ75: 0 | BN75: 0 | CB75: 0 | CD75: 0 | CF75: 0 | CG75: 0 | CH75: 0
C76: 49652_NS | D76: 49652_NS | Q76: 49652 Inv Gains - Private Markets | AZ76: 0 | BN76: 0 | CB76: 0 | CD76: 0 | CF76: 0 | CG76: 0 | CH76: 0
C77: 49653_NS | D77: 49653_NS | Q77: 49653 Inv Gains - Mkt Oil & Gas | AZ77: 0 | BN77: 0 | CB77: 0 | CD77: 0 | CF77: 0 | CG77: 0 | CH77: 0
C78: 49654_NS | D78: 49654_NS | Q78: 49654 Inv Gains - Non-Mkt Oil & Gas | AZ78: 0 | BN78: 0 | CB78: 0 | CD78: 0 | CF78: 0 | CG78: 0 | CH78: 0
C79: 49670_NS | D79: 49670_NS | Q79: 49670 Inv Gains - Mkt Real Estate | AZ79: 0 | BN79: 0 | CB79: 0 | CD79: 0 | CF79: 0 | CG79: 0 | CH79: 0
C80: 49671_NS | D80: 49671_NS | Q80: 49671 Inv Gains - Non-Mkt Real Est | AZ80: 0 | BN80: 0 | CB80: 0 | CD80: 0 | CF80: 0 | CG80: 0 | CH80: 0
C81: 49672_NS | D81: 49672_NS | Q81: 49672 Inv Gains - Mkt Real Estate | AZ81: 0 | BN81: 0 | CB81: 0 | CD81: 0 | CF81: 0 | CG81: 0 | CH81: 0
C82: 49675_NS | D82: 49675_NS | Q82: 49675 Inv Gains/Losses - Derivatives | AZ82: 0 | BN82: 0 | CB82: 0 | CD82: 0 | CF82: 0 | CG82: 0 | CH82: 0
C83: 49680_NS | D83: 49680_NS | Q83: 49680 Inv Gains - Commodities | AZ83: 0 | BN83: 0 | CB83: 0 | CD83: 0 | CF83: 0 | CG83: 0 | CH83: 0
C84: 49684_NS | D84: 49684_NS | Q84: 49684 Inv Gains - Timber | AZ84: 0 | BN84: 0 | CB84: 0 | CD84: 0 | CF84: 0 | CG84: 0 | CH84: 0
C85: 49685_NS | D85: 49685_NS | Q85: 49685 Custodian Realized Gain/Loss | AZ85: 0 | BN85: 0 | CB85: 0 | CD85: 0 | CF85: 0 | CG85: 0 | CH85: 0
C86: 49695_NS | D86: 49695_NS | Q86: 49695 Net Assets Relsd Fr Rest Nonop | AZ86: 0 | BN86: 0 | CB86: 0 | CD86: 0 | CF86: 0 | CG86: 0 | CH86: 0
C87: 49850_NS | D87: 49850_NS | Q87: 49850 Inv Loss - US Fixed Inc | AZ87: 0 | BN87: 0 | CB87: 0 | CD87: 0 | CF87: 0 | CG87: 0 | CH87: 0
C88: 49855_NS | D88: 49855_NS | Q88: 49855 Inv Loss - Cash Equiv | AZ88: 0 | BN88: 0 | CB88: 0 | CD88: 0 | CF88: 0 | CG88: 0 | CH88: 0
C89: 49860_NS | D89: 49860_NS | Q89: 49860 Inv Loss - US Equity | AZ89: 0 | BN89: 0 | CB89: 0 | CD89: 0 | CF89: 0 | CG89: 0 | CH89: 0
C90: 49865_NS | D90: 49865_NS | Q90: 49865 Inv Loss - Non-US Equity | AZ90: 0 | BN90: 0 | CB90: 0 | CD90: 0 | CF90: 0 | CG90: 0 | CH90: 0
C91: 49870_NS | D91: 49870_NS | Q91: 49870 Inv Loss - Trust Equity | AZ91: 0 | BN91: 0 | CB91: 0 | CD91: 0 | CF91: 0 | CG91: 0 | CH91: 0
C92: 49880_NS | D92: 49880_NS | Q92: 49880 Inv Loss - Misc Investment | AZ92: 0 | BN92: 0 | CB92: 0 | CD92: 0 | CF92: 0 | CG92: 0 | CH92: 0
C93: 49890_NS | D93: 49890_NS | Q93: 49890 Inv Pool - Withdrawal | AZ93: 0 | BN93: 0 | CB93: 0 | CD93: 0 | CF93: 0 | CG93: 0 | CH93: 0
C94: 49910_NS | D94: 49910_NS | Q94: 49910 Inv Inc Dist (Dr) | AZ94: 0 | BN94: 0 | CB94: 0 | CD94: 0 | CF94: 0 | CG94: 0 | CH94: 0
C95: 49920_NS | D95: 49920_NS | Q95: 49920 Cash Transfer - Pool 1 | AZ95: 0 | BN95: 0 | CB95: 0 | CD95: 0 | CF95: 0 | CG95: 0 | CH95: 0
C96: 49930_NS | D96: 49930_NS | Q96: 49930 Investment Distr - Pool 1 - Cr | AZ96: 0 | BN96: 0 | CB96: 0 | CD96: =SUM(X96,Z96,AB96,AD96,AF96,AH96,AJ96,AL96,AZ96,BN96,CB96) -> 0 | CF96: 0 | CG96: 0 | CH96: 0
C97: 49350_NS | D97: 49350_NS | Q97: 49350 Interest Inc - Notes Rec | AZ97: 0 | BN97: 0 | CB97: 0 | CD97: 0 | CF97: =SUM(U97:V97,-CE97) -> 0 | CG97: =CD97-CE97 -> 0 | CH97: =SUM(CF97,-CG97) -> 0
C98: 49360_NS | D98: 49360_NS | Q98: 49360 Gift Premium - Non Operating | AZ98: 0 | BN98: 0 | CB98: 0 | CD98: 0 | CF98: 0 | CG98: 0 | CH98: 0
C99: 49414_NS | D99: 49414_NS | Q99: 49414 Inv Inc - Nonoperating | AZ99: 0 | BN99: 0 | CB99: 0 | CD99: 0 | CF99: 0 | CG99: 0 | CH99: 0
C100: 49416_NS | D100: 49416_NS | Q100: 49416 Cash Mgmt Interest Rev-Nonoper | AZ100: 0 | BN100: 0 | CB100: 0 | CD100: 0 | CF100: 0 | CG100: 0 | CH100: 0
C101: 49419_NS | D101: 49419_NS | Q101: 49419 Inv Inc - Joint Ventures | AZ101: 0 | BN101: 0 | CB101: 0 | CD101: 0 | CF101: 0 | CG101: 0 | CH101: 0
C102: 58730_NS | D102: 58730_NS | Q102: 58730 Investment Nonoperating Exp | AZ102: 0 | BN102: 0 | CB102: 0 | CD102: 0 | CF102: 0 | CG102: 0 | CH102: 0
Q103: Inv Inc, Gains Excess Curr Ops | U103: =SUM(U41:U102) -> 0 | V103: =SUM(V41:V102) -> 0 | X103: 0 | Z103: 0 | AB103: 0 | AD103: 0 | AF103: 0 | AH103: 0 | AJ103: 0 | AL103: 0 | AN103: 0 | AO103: 0 | AP103: 0 | AQ103: 0 | AR103: 0 | AS103: 0 | AT103: 0 | AU103: 0 | AV103: 0 | AW103: 0 | AX103: 0 | AY103: 0 | AZ103: 0 | BB103: 0 | BC103: 0 | BD103: 0 | BE103: 0 | BF103: 0 | BG103: 0 | BH103: 0 | BI103: 0 | BJ103: 0 | BK103: 0 | BL103: 0 | BM103: 0 | BN103: =SUM(BN41:BN102) -> 0 | BP103: 0 | BQ103: 0 | BR103: 0 | BS103: 0 | BT103: 0 | BU103: 0 | BV103: 0 | BW103: 0 | BX103: 0 | BY103: 0 | BZ103: 0 | CA103: 0 | CB103: =SUM(CB41:CB102) -> 0 | CD103: 0 | CE103: =SUM(CE41:CE102) -> 0 | CF103: 0 | CG103: 0 | CH103: 0
C104: 49200_NS | D104: 49200_NS | Q104: 49200 Acad Enrichment Fund Rev | AZ104: =SUM(AN104:AY104) -> 0 | BN104: =SUM(BB104:BM104) -> 0 | CB104: =SUM(BP104:CA104) -> 0 | CD104: 0 | CF104: 0 | CG104: 0 | CH104: 0
C105: 49105_NS | D105: 49105_NS | Q105: 49105 Revenue/Expense - Nonop | AZ105: 0 | BN105: 0 | CB105: 0 | CD105: 0 | CF105: 0 | CG105: 0 | CH105: 0
C106: 49315_NS | D106: 49315_NS | Q106: 49315 Lease Rev - Space-Nonop | AZ106: 0 | BN106: 0 | CB106: 0 | CD106: 0 | CF106: 0 | CG106: 0 | CH106: 0
C107: 49320_NS | D107: 49320_NS | Q107: 49320 Other Additions - Endowment | AZ107: 0 | BN107: 0 | CB107: 0 | CD107: 0 | CF107: 0 | CG107: 0 | CH107: 0
C108: 49402_NS | D108: 49402_NS | Q108: 49402 Misc Cash Clearing | AZ108: 0 | BN108: 0 | CB108: 0 | CD108: 0 | CF108: 0 | CG108: 0 | CH108: 0
C109: 49410_NS | D109: 49410_NS | Q109: 49410 Custodian Unrealized | AZ109: 0 | BN109: 0 | CB109: 0 | CD109: 0 | CF109: 0 | CG109: 0 | CH109: 0
C110: 49940_NS | D110: 49940_NS | Q110: 49940 FAIR VALUE DERIVATIVE INSTRU | AZ110: 0 | BN110: 0 | CB110: 0 | CD110: 0 | CF110: 0 | CG110: 0 | CH110: 0
Q111: Other non-operating revenue | U111: =SUM(U104:U110) -> 0 | V111: =SUM(V104:V110) -> 0 | X111: 0 | Z111: 0 | AB111: 0 | AD111: 0 | AF111: 0 | AH111: 0 | AJ111: 0 | AL111: 0 | AN111: 0 | AO111: 0 | AP111: 0 | AQ111: 0 | AR111: 0 | AS111: 0 | AT111: 0 | AU111: 0 | AV111: 0 | AW111: 0 | AX111: 0 | AY111: 0 | AZ111: 0 | BB111: 0 | BC111: 0 | BD111: 0 | BE111: 0 | BF111: 0 | BG111: 0 | BH111: 0 | BI111: 0 | BJ111: 0 | BK111: 0 | BL111: 0 | BM111: 0 | BN111: =SUM(BN104:BN110) -> 0 | BP111: 0 | BQ111: 0 | BR111: 0 | BS111: 0 | BT111: 0 | BU111: 0 | BV111: 0 | BW111: 0 | BX111: 0 | BY111: 0 | BZ111: 0 | CA111: 0 | CB111: =SUM(CB104:CB110) -> 0 | CD111: 0 | CE111: =SUM(CE104:CE110) -> 0 | CF111: 0 | CG111: 0 | CH111: 0
C112: 49409_NS | D112: 49409_NS | Q112: 49409 Perpetual Funds Return, Net | AZ112: =SUM(AN112:AY112) -> 0 | BN112: =SUM(BB112:BM112) -> 0 | CB112: =SUM(BP112:CA112) -> 0 | CD112: 0 | CF112: 0 | CG112: 0 | CH112: 0
Q113: Perpetual Funds Return, Net | U113: =SUM(U112) -> 0 | V113: =SUM(V112) -> 0 | X113: 0 | Z113: 0 | AB113: 0 | AD113: 0 | AF113: 0 | AH113: 0 | AJ113: 0 | AL113: 0 | AN113: 0 | AO113: 0 | AP113: 0 | AQ113: 0 | AR113: 0 | AS113: 0 | AT113: 0 | AU113: 0 | AV113: 0 | AW113: 0 | AX113: 0 | AY113: 0 | AZ113: 0 | BB113: 0 | BC113: 0 | BD113: 0 | BE113: 0 | BF113: 0 | BG113: 0 | BH113: 0 | BI113: 0 | BJ113: 0 | BK113: 0 | BL113: 0 | BM113: 0 | BN113: =SUM(BN112) -> 0 | BP113: 0 | BQ113: 0 | BR113: 0 | BS113: 0 | BT113: 0 | BU113: 0 | BV113: 0 | BW113: 0 | BX113: 0 | BY113: 0 | BZ113: 0 | CA113: 0 | CB113: =SUM(CB112) -> 0 | CD113: 0 | CE113: =SUM(CE112) -> 0 | CF113: 0 | CG113: 0 | CH113: 0
C114: 49403_NS | D114: 49403_NS | Q114: 49403 Gain/Loss - Prop/Equip Sales | AZ114: =SUM(AN114:AY114) -> 0 | BN114: =SUM(BB114:BM114) -> 0 | CB114: =SUM(BP114:CA114) -> 0 | CD114: 0 | CF114: 0 | CG114: 0 | CH114: 0
C115: 49405_NS | D115: 49405_NS | Q115: 49405 Gain/Loss - Other Non-Op | AZ115: 0 | BN115: 0 | CB115: 0 | CD115: 0 | CF115: 0 | CG115: 0 | CH115: 0
C116: 49481_NS | D116: 49481_NS | Q116: 49481 Proceeds - Asset Sale | AZ116: 0 | BN116: 0 | CB116: 0 | CD116: 0 | CF116: 0 | CG116: 0 | CH116: 0
Q117: Property Sales | U117: =SUM(U114:U116) -> 0 | V117: =SUM(V114:V116) -> 0 | X117: 0 | Z117: 0 | AB117: 0 | AD117: 0 | AF117: 0 | AH117: 0 | AJ117: 0 | AL117: 0 | AN117: 0 | AO117: 0 | AP117: 0 | AQ117: 0 | AR117: 0 | AS117: 0 | AT117: 0 | AU117: 0 | AV117: 0 | AW117: 0 | AX117: 0 | AY117: 0 | AZ117: 0 | BB117: 0 | BC117: 0 | BD117: 0 | BE117: 0 | BF117: 0 | BG117: 0 | BH117: 0 | BI117: 0 | BJ117: 0 | BK117: 0 | BL117: 0 | BM117: 0 | BN117: =SUM(BN114:BN116) -> 0 | BP117: 0 | BQ117: 0 | BR117: 0 | BS117: 0 | BT117: 0 | BU117: 0 | BV117: 0 | BW117: 0 | BX117: 0 | BY117: 0 | BZ117: 0 | CA117: 0 | CB117: =SUM(CB114:CB116) -> 0 | CD117: 0 | CE117: =SUM(CE114:CE116) -> 0 | CF117: 0 | CG117: 0 | CH117: 0
C118: 49406_NS | D118: 49406_NS | Q118: 49406 Unrealized Appreciation | AZ118: =SUM(AN118:AY118) -> 0 | BN118: =SUM(BB118:BM118) -> 0 | CB118: =SUM(BP118:CA118) -> 0 | CD118: 0 | CF118: 0 | CG118: 0 | CH118: 0
Q119: Unrealized Revenue | U119: =SUM(U117) -> 0 | V119: =SUM(V117) -> 0 | X119: 0 | Z119: 0 | AB119: 0 | AD119: 0 | AF119: 0 | AH119: 0 | AJ119: 0 | AL119: 0 | AN119: 0 | AO119: 0 | AP119: 0 | AQ119: 0 | AR119: 0 | AS119: 0 | AT119: 0 | AU119: 0 | AV119: 0 | AW119: 0 | AX119: 0 | AY119: 0 | AZ119: 0 | BB119: 0 | BC119: 0 | BD119: 0 | BE119: 0 | BF119: 0 | BG119: 0 | BH119: 0 | BI119: 0 | BJ119: 0 | BK119: 0 | BL119: 0 | BM119: 0 | BN119: =SUM(BN117) -> 0 | BP119: 0 | BQ119: 0 | BR119: 0 | BS119: 0 | BT119: 0 | BU119: 0 | BV119: 0 | BW119: 0 | BX119: 0 | BY119: 0 | BZ119: 0 | CA119: 0 | CB119: =SUM(CB117) -> 0 | CD119: 0 | CE119: =SUM(CE117) -> 0 | CF119: 0 | CG119: 0 | CH119: 0
C120: 40010_NS | D120: 40010_NS | Q120: 40010 BDG-Operating Revenue | AZ120: =SUM(AN120:AY120) -> 0 | BN120: =SUM(BB120:BM120) -> 0 | CB120: =SUM(BP120:CA120) -> 0 | CD120: 0 | CF120: 0 | CG120: 0 | CH120: 0
Q121: Budget, operating revenue | U121: =SUM(U119) -> 0 | V121: =SUM(V119) -> 0 | X121: 0 | Z121: 0 | AB121: 0 | AD121: 0 | AF121: 0 | AH121: 0 | AJ121: 0 | AL121: 0 | AN121: 0 | AO121: 0 | AP121: 0 | AQ121: 0 | AR121: 0 | AS121: 0 | AT121: 0 | AU121: 0 | AV121: 0 | AW121: 0 | AX121: 0 | AY121: 0 | AZ121: 0 | BB121: 0 | BC121: 0 | BD121: 0 | BE121: 0 | BF121: 0 | BG121: 0 | BH121: 0 | BI121: 0 | BJ121: 0 | BK121: 0 | BL121: 0 | BM121: 0 | BN121: =SUM(BN119) -> 0 | BP121: 0 | BQ121: 0 | BR121: 0 | BS121: 0 | BT121: 0 | BU121: 0 | BV121: 0 | BW121: 0 | BX121: 0 | BY121: 0 | BZ121: 0 | CA121: 0 | CB121: =SUM(CB119) -> 0 | CD121: 0 | CE121: =SUM(CE119) -> 0 | CF121: 0 | CG121: 0 | CH121: 0
C122: 40951_NS | D122: 40951_NS | Q122: 40951 Allow - BCBS | AZ122: =SUM(AN122:AY122) -> 0 | BN122: =SUM(BB122:BM122) -> 0 | CB122: =SUM(BP122:CA122) -> 0 | CD122: 0 | CF122: 0 | CG122: 0 | CH122: 0
C123: 40900_NS | D123: 40900_NS | Q123: 40900 Allow - Contr Adj | AZ123: 0 | BN123: 0 | CB123: 0 | CD123: 0 | CF123: 0 | CG123: 0 | CH123: 0
C124: 40905_NS | D124: 40905_NS | Q124: 40905 Allow - TEC IDX True Up | AZ124: 0 | BN124: 0 | CB124: 0 | CD124: 0 | CF124: 0 | CG124: 0 | CH124: 0
C125: 40920_NS | D125: 40920_NS | Q125: 40920 Allow - Other Adjustments | AZ125: 0 | BN125: 0 | CB125: 0 | CD125: 0 | CF125: 0 | CG125: 0 | CH125: 0
C126: 40925_NS | D126: 40925_NS | Q126: 40925 Allow - Combined Res | AZ126: 0 | BN126: 0 | CB126: 0 | CD126: 0 | CF126: 0 | CG126: 0 | CH126: 0
C127: 40930_NS | D127: 40930_NS | Q127: 40930 Allow - Non-IDX Chrgs | AZ127: 0 | BN127: 0 | CB127: 0 | CD127: 0 | CF127: 0 | CG127: 0 | CH127: 0
C128: 40961_NS | D128: 40961_NS | Q128: 40961 Allow - HMO | AZ128: 0 | BN128: 0 | CB128: 0 | CD128: 0 | CF128: 0 | CG128: 0 | CH128: 0
C129: 40985_NS | D129: 40985_NS | Q129: 40985 Allow - Medicaid | AZ129: 0 | BN129: 0 | CB129: 0 | CD129: 0 | CF129: 0 | CG129: 0 | CH129: 0
C130: 40987_NS | D130: 40987_NS | Q130: 40987 Allow - Ind Care Tr Fd | AZ130: 0 | BN130: 0 | CB130: 0 | CD130: 0 | CF130: 0 | CG130: 0 | CH130: 0
C131: 40988_NS | D131: 40988_NS | Q131: 40988 Allow - GRIICN | AZ131: 0 | BN131: 0 | CB131: 0 | CD131: 0 | CF131: 0 | CG131: 0 | CH131: 0
C132: 40980_NS | D132: 40980_NS | Q132: 40980 Allow - Medicare | AZ132: 0 | BN132: 0 | CB132: 0 | CD132: 0 | CF132: 0 | CG132: 0 | CH132: 0
C133: 40982_NS | D133: 40982_NS | Q133: 40982 Allow - Passthrough | AZ133: 0 | BN133: 0 | CB133: 0 | CD133: 0 | CF133: 0 | CG133: 0 | CH133: 0
C134: 40983_NS | D134: 40983_NS | Q134: 40983 Allow - Medicare Organs | AZ134: 0 | BN134: 0 | CB134: 0 | CD134: 0 | CF134: 0 | CG134: 0 | CH134: 0
C135: 40989_NS | D135: 40989_NS | Q135: 40989 Allow - PY Settlements | AZ135: 0 | BN135: 0 | CB135: 0 | CD135: 0 | CF135: 0 | CG135: 0 | CH135: 0
C136: 40957_NS | D136: 40957_NS | Q136: 40957 Allow - Va | AZ136: 0 | BN136: 0 | CB136: 0 | CD136: 0 | CF136: 0 | CG136: 0 | CH136: 0
C137: 40958_NS | D137: 40958_NS | Q137: 40958 Allow - Champus | AZ137: 0 | BN137: 0 | CB137: 0 | CD137: 0 | CF137: 0 | CG137: 0 | CH137: 0
C138: 40977_NS | D138: 40977_NS | Q138: 40977 Allow - Clinical Research | AZ138: 0 | BN138: 0 | CB138: 0 | CD138: 0 | CF138: 0 | CG138: 0 | CH138: 0
C139: 40978_NS | D139: 40978_NS | Q139: 40978 Allow - Grants | AZ139: 0 | BN139: 0 | CB139: 0 | CD139: 0 | CF139: 0 | CG139: 0 | CH139: 0
C140: 40979_NS | D140: 40979_NS | Q140: 40979 Allow - Workers Comp | AZ140: 0 | BN140: 0 | CB140: 0 | CD140: 0 | CF140: 0 | CG140: 0 | CH140: 0
C141: 40994_NS | D141: 40994_NS | Q141: 40994 Allow - Admn Adj | AZ141: 0 | BN141: 0 | CB141: 0 | CD141: 0 | CF141: 0 | CG141: 0 | CH141: 0
C142: 40999_NS | D142: 40999_NS | Q142: 40999 Allow - Cerner Lab | AZ142: 0 | BN142: 0 | CB142: 0 | CD142: 0 | CF142: 0 | CG142: 0 | CH142: 0
C143: 40950_NS | D143: 40950_NS | Q143: 40950 Allow - PPO | AZ143: 0 | BN143: 0 | CB143: 0 | CD143: 0 | CF143: 0 | CG143: 0 | CH143: 0
C144: 40995_NS | D144: 40995_NS | Q144: 40995 Allow - Charity Wr-Offs | AZ144: 0 | BN144: 0 | CB144: 0 | CD144: 0 | CF144: 0 | CG144: 0 | CH144: 0
C145: 40996_NS | D145: 40996_NS | Q145: 40996 Allow - Indigent | AZ145: 0 | BN145: 0 | CB145: 0 | CD145: 0 | CF145: 0 | CG145: 0 | CH145: 0
Q146: Deductions from Revenue | U146: =SUM(U122:U145) -> 0 | V146: =SUM(V122:V145) -> 0 | X146: 0 | Z146: 0 | AB146: 0 | AD146: 0 | AF146: 0 | AH146: 0 | AJ146: 0 | AL146: 0 | AN146: 0 | AO146: 0 | AP146: 0 | AQ146: 0 | AR146: 0 | AS146: 0 | AT146: 0 | AU146: 0 | AV146: 0 | AW146: 0 | AX146: 0 | AY146: 0 | AZ146: 0 | BB146: 0 | BC146: 0 | BD146: 0 | BE146: 0 | BF146: 0 | BG146: 0 | BH146: 0 | BI146: 0 | BJ146: 0 | BK146: 0 | BL146: 0 | BM146: 0 | BN146: =SUM(BN122:BN145) -> 0 | BP146: 0 | BQ146: 0 | BR146: 0 | BS146: 0 | BT146: 0 | BU146: 0 | BV146: 0 | BW146: 0 | BX146: 0 | BY146: 0 | BZ146: 0 | CA146: 0 | CB146: =SUM(CB122:CB145) -> 0 | CD146: 0 | CE146: =SUM(CE122:CE145) -> 0 | CF146: 0 | CG146: 0 | CH146: 0
C147: 42300_NS | D147: 42300_NS | Q147: 42300 Endowment Income | AZ147: =SUM(AN147:AY147) -> 0 | BN147: =SUM(BB147:BM147) -> 0 | CB147: =SUM(BP147:CA147) -> 0 | CD147: 0 | CF147: 0 | CG147: 0 | CH147: 0
C148: 42350_NS | D148: 42350_NS | Q148: 42350 Endowment Inc Reinv | AZ148: 0 | BN148: 0 | CB148: 0 | CD148: 0 | CF148: 0 | CG148: 0 | CH148: 0
C149: 42370_NS | D149: 42370_NS | Q149: 42370 Inv Inc - Trust Income | AZ149: 0 | BN149: 0 | CB149: 0 | CD149: 0 | CF149: 0 | CG149: 0 | CH149: 0
C150: 42375_NS | D150: 42375_NS | Q150: 42375 Trust Fund Distributions | AZ150: 0 | BN150: 0 | CB150: 0 | CD150: 0 | CF150: 0 | CG150: 0 | CH150: 0
C151: 42390_NS | D151: 42390_NS | Q151: 42390 Endowment Trans - Misc | AZ151: 0 | BN151: 0 | CB151: 0 | CD151: 0 | CF151: 0 | CG151: 0 | CH151: 0
C152: 42400_NS | D152: 42400_NS | Q152: 42400 Matured Annuity | AZ152: 0 | BN152: 0 | CB152: 0 | CD152: 0 | CF152: 0 | CG152: 0 | CH152: 0
Q153: Endowment Spending Dist | U153: =SUM(U147:U152) -> 0 | V153: =SUM(V147:V152) -> 0 | X153: 0 | Z153: 0 | AB153: 0 | AD153: 0 | AF153: 0 | AH153: 0 | AJ153: 0 | AL153: 0 | AN153: 0 | AO153: 0 | AP153: 0 | AQ153: 0 | AR153: 0 | AS153: 0 | AT153: 0 | AU153: 0 | AV153: 0 | AW153: 0 | AX153: 0 | AY153: 0 | AZ153: 0 | BB153: 0 | BC153: 0 | BD153: 0 | BE153: 0 | BF153: 0 | BG153: 0 | BH153: 0 | BI153: 0 | BJ153: 0 | BK153: 0 | BL153: 0 | BM153: 0 | BN153: =SUM(BN147:BN152) -> 0 | BP153: 0 | BQ153: 0 | BR153: 0 | BS153: 0 | BT153: 0 | BU153: 0 | BV153: 0 | BW153: 0 | BX153: 0 | BY153: 0 | BZ153: 0 | CA153: 0 | CB153: =SUM(CB147:CB152) -> 0 | CD153: 0 | CE153: =SUM(CE147:CE152) -> 0 | CF153: 0 | CG153: 0 | CH153: 0
C154: 46310_NS | D154: 46310_NS | Q154: 46310 Gift Rev - Other | AZ154: =SUM(AN154:AY154) -> 0 | BN154: =SUM(BB154:BM154) -> 0 | CB154: =SUM(BP154:CA154) -> 0 | CD154: 0 | CF154: 0 | CG154: 0 | CH154: 0
C155: 46320_NS | D155: 46320_NS | Q155: 46320 Gift Rev - PY | AZ155: 0 | BN155: 0 | CB155: 0 | CD155: 0 | CF155: 0 | CG155: 0 | CH155: 0
C156: 46330_NS | D156: 46330_NS | Q156: 46330 Gifts Rev - Oper - Private | AZ156: 0 | BN156: 0 | CB156: 0 | CD156: 0 | CF156: 0 | CG156: 0 | CH156: 0
C157: 46350_NS | D157: 46350_NS | Q157: 46350 Contributions Rec - Adj | AZ157: 0 | BN157: 0 | CB157: 0 | CD157: 0 | CF157: 0 | CG157: 0 | CH157: 0
Q158: Gifts & Contributions (Oper) | U158: =SUM(U154:U157) -> 0 | V158: =SUM(V154:V157) -> 0 | X158: 0 | Z158: 0 | AB158: 0 | AD158: 0 | AF158: 0 | AH158: 0 | AJ158: 0 | AL158: 0 | AN158: 0 | AO158: 0 | AP158: 0 | AQ158: 0 | AR158: 0 | AS158: 0 | AT158: 0 | AU158: 0 | AV158: 0 | AW158: 0 | AX158: 0 | AY158: 0 | AZ158: 0 | BB158: 0 | BC158: 0 | BD158: 0 | BE158: 0 | BF158: 0 | BG158: 0 | BH158: 0 | BI158: 0 | BJ158: 0 | BK158: 0 | BL158: 0 | BM158: 0 | BN158: =SUM(BN154:BN157) -> 0 | BP158: 0 | BQ158: 0 | BR158: 0 | BS158: 0 | BT158: 0 | BU158: 0 | BV158: 0 | BW158: 0 | BX158: 0 | BY158: 0 | BZ158: 0 | CA158: 0 | CB158: =SUM(CB154:CB157) -> 0 | CD158: 0 | CE158: =SUM(CE154:CE157) -> 0 | CF158: 0 | CG158: 0 | CH158: 0
C159: 44250_NS | D159: 44250_NS | Q159: 44250 Grants/Contracts Rev - CF | AZ159: =SUM(AN159:AY159) -> 0 | BN159: =SUM(BB159:BM159) -> 0 | CB159: =SUM(BP159:CA159) -> 0 | CD159: 0 | CF159: 0 | CG159: 0 | CH159: 0
C160: 44200_NS | D160: 44200_NS | Q160: 44200 Sponsored Research Revenue | AZ160: 0 | BN160: 0 | CB160: 0 | CD160: =SUM(X160,Z160,AB160,AD160,AF160,AH160,AJ160,AL160,AZ160,BN160,CB160) -> 0 | CF160: 0 | CG160: 0 | CH160: 0
C161: 44280_NS | D161: 44280_NS | Q161: 44280 Fedl Cap Contr - Student Aid | AZ161: 0 | BN161: 0 | CB161: 0 | CD161: 0 | CF161: =SUM(U161:V161,-CE161) -> 0 | CG161: =CD161-CE161 -> 0 | CH161: =SUM(CF161,-CG161) -> 0
Q162: Government Grants & Contracts | U162: =SUM(U159:U161) -> 0 | V162: =SUM(V159:V161) -> 0 | X162: 0 | Z162: 0 | AB162: 0 | AD162: 0 | AF162: 0 | AH162: 0 | AJ162: 0 | AL162: =SUM(AL159:AL161) -> 0 | AN162: 0 | AO162: 0 | AP162: 0 | AQ162: 0 | AR162: 0 | AS162: 0 | AT162: 0 | AU162: 0 | AV162: 0 | AW162: 0 | AX162: 0 | AY162: 0 | AZ162: 0 | BB162: 0 | BC162: 0 | BD162: 0 | BE162: 0 | BF162: 0 | BG162: 0 | BH162: 0 | BI162: 0 | BJ162: 0 | BK162: 0 | BL162: 0 | BM162: 0 | BN162: =SUM(BN159:BN161) -> 0 | BP162: 0 | BQ162: 0 | BR162: 0 | BS162: 0 | BT162: 0 | BU162: 0 | BV162: 0 | BW162: 0 | BX162: 0 | BY162: 0 | BZ162: 0 | CA162: 0 | CB162: =SUM(CB159:CB161) -> 0 | CD162: 0 | CE162: =SUM(CE159:CE161) -> 0 | CF162: 0 | CG162: 0 | CH162: 0
C163: 44210_NS | D163: 44210_NS | Q163: 44210 F&A Offset Recovery | AZ163: =SUM(AN163:AY163) -> 0 | BN163: =SUM(BB163:BM163) -> 0 | CB163: =SUM(BP163:CA163) -> 0 | CD163: 0 | CF163: 0 | CG163: 0 | CH163: 0
C164: 44300_NS | D164: 44300_NS | Q164: 44300 Indirect Cost Rec - Federal | AZ164: 0 | BN164: 0 | CB164: 0 | CD164: 0 | CF164: 0 | CG164: 0 | CH164: 0
C165: 44390_NS | D165: 44390_NS | Q165: 44390 Indirect Cost Refunds | AZ165: 0 | BN165: 0 | CB165: 0 | CD165: 0 | CF165: 0 | CG165: 0 | CH165: 0
C166: 44315_NS | D166: 44315_NS | Q166: 44315 Indirect Cost Rec - Private | AZ166: 0 | BN166: 0 | CB166: 0 | CD166: 0 | CF166: 0 | CG166: 0 | CH166: 0
Q167: Indirect Cost Recoveries | U167: =SUM(U163:U166) -> 0 | V167: =SUM(V163:V166) -> 0 | X167: 0 | Z167: 0 | AB167: 0 | AD167: 0 | AF167: 0 | AH167: 0 | AJ167: 0 | AL167: 0 | AN167: 0 | AO167: 0 | AP167: 0 | AQ167: 0 | AR167: 0 | AS167: 0 | AT167: 0 | AU167: 0 | AV167: 0 | AW167: 0 | AX167: 0 | AY167: 0 | AZ167: 0 | BB167: 0 | BC167: 0 | BD167: 0 | BE167: 0 | BF167: 0 | BG167: 0 | BH167: 0 | BI167: 0 | BJ167: 0 | BK167: 0 | BL167: 0 | BM167: 0 | BN167: =SUM(BN163:BN166) -> 0 | BP167: 0 | BQ167: 0 | BR167: 0 | BS167: 0 | BT167: 0 | BU167: 0 | BV167: 0 | BW167: 0 | BX167: 0 | BY167: 0 | BZ167: 0 | CA167: 0 | CB167: =SUM(CB163:CB166) -> 0 | CD167: 0 | CE167: =SUM(CE163:CE166) -> 0 | CF167: 0 | CG167: 0 | CH167: 0
C168: 41400_NS | D168: 41400_NS | Q168: 41400 Fee Rev - Lab/Clinic Fees | AZ168: =SUM(AN168:AY168) -> 0 | BN168: =SUM(BB168:BM168) -> 0 | CB168: =SUM(BP168:CA168) -> 0 | CD168: 0 | CF168: 0 | CG168: 0 | CH168: 0
C169: 41410_NS | D169: 41410_NS | Q169: 41410 Fee Rev - Examination Fees | AZ169: 0 | BN169: 0 | CB169: 0 | CD169: 0 | CF169: 0 | CG169: 0 | CH169: 0
C170: 41420_NS | D170: 41420_NS | Q170: 41420 Fee Rev - Immunization Fees | AZ170: 0 | BN170: 0 | CB170: 0 | CD170: 0 | CF170: 0 | CG170: 0 | CH170: 0
C171: 40990_NS | D171: 40990_NS | Q171: 40990 Allow - Bad Debts | AZ171: 0 | BN171: 0 | CB171: 0 | CD171: 0 | CF171: 0 | CG171: 0 | CH171: 0
C172: 40991_NS | D172: 40991_NS | Q172: 40991 Allow-Bad Debt Rsv for Aged AR | AZ172: 0 | BN172: 0 | CB172: 0 | CD172: 0 | CF172: 0 | CG172: 0 | CH172: 0
C173: 40993_NS | D173: 40993_NS | Q173: 40993 Allow - Misc Adj | AZ173: 0 | BN173: 0 | CB173: 0 | CD173: 0 | CF173: 0 | CG173: 0 | CH173: 0
C174: 40997_NS | D174: 40997_NS | Q174: 40997 Allowance Provider Tax | AZ174: 0 | BN174: 0 | CB174: 0 | CD174: 0 | CF174: 0 | CG174: 0 | CH174: 0
C175: 45000_NS | D175: 45000_NS | Q175: 45000 Medical Svs Rev | AZ175: 0 | BN175: 0 | CB175: 0 | CD175: 0 | CF175: 0 | CG175: 0 | CH175: 0
C176: 45010_NS | D176: 45010_NS | Q176: 45010 CHOA Revenue | AZ176: 0 | BN176: 0 | CB176: 0 | CD176: 0 | CF176: 0 | CG176: 0 | CH176: 0
C177: 45011_NS | D177: 45011_NS | Q177: 45011 CHOA Revenue - Salary | AZ177: 0 | BN177: 0 | CB177: 0 | CD177: 0 | CF177: 0 | CG177: 0 | CH177: 0
C178: 45012_NS | D178: 45012_NS | Q178: 45012 CHOA Revenue - Fringe | AZ178: 0 | BN178: 0 | CB178: 0 | CD178: 0 | CF178: 0 | CG178: 0 | CH178: 0
C179: 45013_NS | D179: 45013_NS | Q179: 45013 CHOA Revenue - TDJ | AZ179: 0 | BN179: 0 | CB179: 0 | CD179: 0 | CF179: 0 | CG179: 0 | CH179: 0
C180: 45014_NS | D180: 45014_NS | Q180: 45014 CHOA Revenue - Phone/Pagers | AZ180: 0 | BN180: 0 | CB180: 0 | CD180: 0 | CF180: 0 | CG180: 0 | CH180: 0
C181: 45015_NS | D181: 45015_NS | Q181: 45015 CHOA Revenue - Licenses | AZ181: 0 | BN181: 0 | CB181: 0 | CD181: 0 | CF181: 0 | CG181: 0 | CH181: 0
C182: 45016_NS | D182: 45016_NS | Q182: 45016 CHOA Revenue - Other Expenses | AZ182: 0 | BN182: 0 | CB182: 0 | CD182: 0 | CF182: 0 | CG182: 0 | CH182: 0
C183: 45020_NS | D183: 45020_NS | Q183: 45020 Acad Enrichment Fund Rev | AZ183: 0 | BN183: 0 | CB183: 0 | CD183: 0 | CF183: 0 | CG183: 0 | CH183: 0
C184: 45030_NS | D184: 45030_NS | Q184: 45030 Medical Info Rev | AZ184: 0 | BN184: 0 | CB184: 0 | CD184: 0 | CF184: 0 | CG184: 0 | CH184: 0
C185: 45040_NS | D185: 45040_NS | Q185: 45040 Managed Care Disc | AZ185: 0 | BN185: 0 | CB185: 0 | CD185: 0 | CF185: 0 | CG185: 0 | CH185: 0
C186: 45200_NS | D186: 45200_NS | Q186: 45200 EMCF - Medicaid | AZ186: 0 | BN186: 0 | CB186: 0 | CD186: 0 | CF186: 0 | CG186: 0 | CH186: 0
C187: 45205_NS | D187: 45205_NS | Q187: 45205 EMCF-UPL | AZ187: 0 | BN187: 0 | CB187: 0 | CD187: 0 | CF187: 0 | CG187: 0 | CH187: 0
C188: 45210_NS | D188: 45210_NS | Q188: 45210 EMCF - Medicare | AZ188: 0 | BN188: 0 | CB188: 0 | CD188: 0 | CF188: 0 | CG188: 0 | CH188: 0
C189: 45215_NS | D189: 45215_NS | Q189: 45215 EMCF-Meaningful Use | AZ189: 0 | BN189: 0 | CB189: 0 | CD189: 0 | CF189: 0 | CG189: 0 | CH189: 0
C190: 45220_NS | D190: 45220_NS | Q190: 45220 EMCF - Commercial | AZ190: 0 | BN190: 0 | CB190: 0 | CD190: 0 | CF190: 0 | CG190: 0 | CH190: 0
C191: 45222_NS | D191: 45222_NS | Q191: 45222 EMCF - Blue Cross | AZ191: 0 | BN191: 0 | CB191: 0 | CD191: 0 | CF191: 0 | CG191: 0 | CH191: 0
C192: 45224_NS | D192: 45224_NS | Q192: 45224 EMCF - HMO | AZ192: 0 | BN192: 0 | CB192: 0 | CD192: 0 | CF192: 0 | CG192: 0 | CH192: 0
C193: 45226_NS | D193: 45226_NS | Q193: 45226 EMCF - PPO | AZ193: 0 | BN193: 0 | CB193: 0 | CD193: 0 | CF193: 0 | CG193: 0 | CH193: 0
C194: 45230_NS | D194: 45230_NS | Q194: 45230 EMCF - Self-Pay | AZ194: 0 | BN194: 0 | CB194: 0 | CD194: 0 | CF194: 0 | CG194: 0 | CH194: 0
C195: 45235_NS | D195: 45235_NS | Q195: 45235 EMCF-Outsourced | AZ195: 0 | BN195: 0 | CB195: 0 | CD195: 0 | CF195: 0 | CG195: 0 | CH195: 0
C196: 45240_NS | D196: 45240_NS | Q196: 45240 EMCF - Case Mgt | AZ196: 0 | BN196: 0 | CB196: 0 | CD196: 0 | CF196: 0 | CG196: 0 | CH196: 0
C197: 45250_NS | D197: 45250_NS | Q197: 45250 EMCF-Other | AZ197: 0 | BN197: 0 | CB197: 0 | CD197: 0 | CF197: 0 | CG197: 0 | CH197: 0
C198: 45260_NS | D198: 45260_NS | Q198: 45260 EMCF - Refunds | AZ198: 0 | BN198: 0 | CB198: 0 | CD198: 0 | CF198: 0 | CG198: 0 | CH198: 0
C199: 45638_NS | D199: 45638_NS | Q199: 45638 Cost Allowances - Medicaid | AZ199: 0 | BN199: 0 | CB199: 0 | CD199: 0 | CF199: 0 | CG199: 0 | CH199: 0
Q200: Medical Services | U200: =SUM(U168:U199) -> 0 | V200: =SUM(V168:V199) -> 0 | X200: 0 | Z200: 0 | AB200: 0 | AD200: 0 | AF200: 0 | AH200: 0 | AJ200: 0 | AL200: 0 | AN200: 0 | AO200: 0 | AP200: 0 | AQ200: 0 | AR200: 0 | AS200: 0 | AT200: 0 | AU200: 0 | AV200: 0 | AW200: 0 | AX200: 0 | AY200: 0 | AZ200: 0 | BB200: 0 | BC200: 0 | BD200: 0 | BE200: 0 | BF200: 0 | BG200: 0 | BH200: 0 | BI200: 0 | BJ200: 0 | BK200: 0 | BL200: 0 | BM200: 0 | BN200: =SUM(BN168:BN199) -> 0 | BP200: 0 | BQ200: 0 | BR200: 0 | BS200: 0 | BT200: 0 | BU200: 0 | BV200: 0 | BW200: 0 | BX200: 0 | BY200: 0 | BZ200: 0 | CA200: 0 | CB200: =SUM(CB168:CB199) -> 0 | CD200: 0 | CE200: =SUM(CE168:CE199) -> 0 | CF200: 0 | CG200: 0 | CH200: 0
C201: 42690_NS | D201: 42690_NS | Q201: 42690 Net Assets Relsd Fr Restr-Ops | AZ201: =SUM(AN201:AY201) -> 0 | BN201: =SUM(BB201:BM201) -> 0 | CB201: =SUM(BP201:CA201) -> 0 | CD201: 0 | CF201: 0 | CG201: 0 | CH201: 0
Q202: Net assets released from restr | U202: =SUM(U201) -> 0 | V202: =SUM(V201) -> 0 | X202: 0 | Z202: 0 | AB202: 0 | AD202: 0 | AF202: 0 | AH202: 0 | AJ202: 0 | AL202: 0 | AN202: 0 | AO202: 0 | AP202: 0 | AQ202: 0 | AR202: 0 | AS202: 0 | AT202: 0 | AU202: 0 | AV202: 0 | AW202: 0 | AX202: 0 | AY202: 0 | AZ202: 0 | BB202: 0 | BC202: 0 | BD202: 0 | BE202: 0 | BF202: 0 | BG202: 0 | BH202: 0 | BI202: 0 | BJ202: 0 | BK202: 0 | BL202: 0 | BM202: 0 | BN202: =SUM(BN201) -> 0 | BP202: 0 | BQ202: 0 | BR202: 0 | BS202: 0 | BT202: 0 | BU202: 0 | BV202: 0 | BW202: 0 | BX202: 0 | BY202: 0 | BZ202: 0 | CA202: 0 | CB202: =SUM(CB201) -> 0 | CD202: 0 | CE202: =SUM(CE201) -> 0 | CF202: 0 | CG202: 0 | CH202: 0
C203: 44215_NS | D203: 44215_NS | Q203: 44215 Grants Small Balance Adj | AZ203: =SUM(AN203:AY203) -> 0 | BN203: =SUM(BB203:BM203) -> 0 | CB203: =SUM(BP203:CA203) -> 0 | CD203: 0 | CF203: 0 | CG203: 0 | CH203: 0
Q204: Other Grants & Contracts | U204: =SUM(U203) -> 0 | V204: =SUM(V203) -> 0 | X204: 0 | Z204: 0 | AB204: 0 | AD204: 0 | AF204: 0 | AH204: 0 | AJ204: 0 | AL204: 0 | AN204: 0 | AO204: 0 | AP204: 0 | AQ204: 0 | AR204: 0 | AS204: 0 | AT204: 0 | AU204: 0 | AV204: 0 | AW204: 0 | AX204: 0 | AY204: 0 | AZ204: 0 | BB204: 0 | BC204: 0 | BD204: 0 | BE204: 0 | BF204: 0 | BG204: 0 | BH204: 0 | BI204: 0 | BJ204: 0 | BK204: 0 | BL204: 0 | BM204: 0 | BN204: =SUM(BN203) -> 0 | BP204: 0 | BQ204: 0 | BR204: 0 | BS204: 0 | BT204: 0 | BU204: 0 | BV204: 0 | BW204: 0 | BX204: 0 | BY204: 0 | BZ204: 0 | CA204: 0 | CB204: =SUM(CB203) -> 0 | CD204: 0 | CE204: =SUM(CE203) -> 0 | CF204: 0 | CG204: 0 | CH204: 0
C205: 42416_NS | D205: 42416_NS | Q205: 42416 Cash Mgt - Int Rev | AZ205: =SUM(AN205:AY205) -> 0 | BN205: =SUM(BB205:BM205) -> 0 | CB205: =SUM(BP205:CA205) -> 0 | CD205: 0 | CF205: 0 | CG205: 0 | CH205: 0
C206: 42800_NS | D206: 42800_NS | Q206: 42800 Student Loans - Int Inc-W-Off | AZ206: 0 | BN206: 0 | CB206: 0 | CD206: 0 | CF206: 0 | CG206: 0 | CH206: 0
C207: 42810_NS | D207: 42810_NS | Q207: 42810 Student Loans - Cont Cost | AZ207: 0 | BN207: 0 | CB207: 0 | CD207: 0 | CF207: 0 | CG207: 0 | CH207: 0
C208: 42820_NS | D208: 42820_NS | Q208: 42820 Student Loans - Canc-After 72 | AZ208: 0 | BN208: 0 | CB208: 0 | CD208: 0 | CF208: 0 | CG208: 0 | CH208: 0
C209: 42830_NS | D209: 42830_NS | Q209: 42830 Student Loans - Canc-Prior 72 | AZ209: 0 | BN209: 0 | CB209: 0 | CD209: 0 | CF209: 0 | CG209: 0 | CH209: 0
C210: 42415_NS | D210: 42415_NS | Q210: 42415 Inv Inc - Operating | AZ210: 0 | BN210: 0 | CB210: 0 | CD210: 0 | CF210: 0 | CG210: 0 | CH210: 0
C211: 42418_NS | D211: 42418_NS | Q211: 42418 Int Rev - Loan Agreements | AZ211: 0 | BN211: 0 | CB211: 0 | CD211: 0 | CF211: 0 | CG211: 0 | CH211: 0
... 908 more rows
